[Event "*** Titled Tuesday Blitz"]
[Site "Chess.com"]
[Date "2021.02.09"]
[Round "9"]
[White "chessmadara"]
[Black "ridnani2021"]
[Result "0-1"]
[WhiteElo "2165"]
[BlackElo "2340"]
[TimeControl "180+1"]
[EndTime "11:42:39 PST"]
[Termination "ridnani2021 won by resignation"]

1. e4 {[%clk 0:03:00.9]} 1... c5 {[%clk 0:02:59.7]} 2. Nf3 {[%clk 0:02:59.7]}
2... d6 {[%clk 0:03:00.2]} 3. d4 {[%clk 0:03:00.1]} 3... cxd4 {[%clk 0:03:01.1]}
4. Nxd4 {[%clk 0:03:00.7]} 4... Nf6 {[%clk 0:03:01.7]} 5. Nc3 {[%clk 0:03:00.4]}
5... a6 {[%clk 0:03:02.2]} 6. Be2 {[%clk 0:02:58.9]} 6... e5 {[%clk 0:03:01.9]}
7. Nb3 {[%clk 0:02:57.4]} 7... Be7 {[%clk 0:03:02.4]} 8. Bg5 {[%clk 0:02:56]}
8... Be6 {[%clk 0:03:02.6]} 9. Bxf6 {[%clk 0:02:52.8]} 9... Bxf6 {[%clk
0:03:03.5]} 10. Qd3 {[%clk 0:02:53]} 10... Be7 {[%clk 0:03:01.9]} 11. O-O-O
{[%clk 0:02:51.3]} 11... Nd7 {[%clk 0:03:01.9]} 12. Kb1 {[%clk 0:02:41.3]} 12...
O-O {[%clk 0:03:01.2]} 13. g4 {[%clk 0:02:38.9]} 13... b5 {[%clk 0:03:00.8]} 14.
h4 {[%clk 0:02:37.1]} 14... Nb6 {[%clk 0:02:59.5]} 15. Qg3 {[%clk 0:02:24.1]}
15... b4 {[%clk 0:02:55.6]} 16. Nd5 {[%clk 0:02:21]} 16... Bxd5 {[%clk
0:02:55.9]} 17. exd5 {[%clk 0:02:20.4]} 17... a5 {[%clk 0:02:56.5]} 18. h5
{[%clk 0:01:49.9]} 18... a4 {[%clk 0:02:55.8]} 19. Nc1 {[%clk 0:01:49.1]} 19...
Bg5 {[%clk 0:02:53.2]} 20. h6 {[%clk 0:01:43.2]} 20... Bxh6 {[%clk 0:02:49.9]}
21. Rxh6 {[%clk 0:01:39.5]} 21... gxh6 {[%clk 0:02:50.8]} 22. Rh1 {[%clk
0:01:33.9]} 22... Qg5 {[%clk 0:02:48.7]} 23. Rh5 {[%clk 0:01:25]} 23... Qg7
{[%clk 0:02:45.9]} 24. g5 {[%clk 0:01:19.1]} 24... Nxd5 {[%clk 0:02:35]} 25.
Rxh6 {[%clk 0:01:13.4]} 25... Nf4 {[%clk 0:02:30.3]} 26. Bf3 {[%clk 0:01:10.3]}
26... Rac8 {[%clk 0:02:18.8]} 27. Be4 {[%clk 0:01:09.9]} 27... Ng6 {[%clk
0:02:18.1]} 28. Nd3 {[%clk 0:00:59.6]} 28... b3 {[%clk 0:02:17.9]} 29. axb3
{[%clk 0:00:54.5]} 29... axb3 {[%clk 0:02:18.8]} 30. cxb3 {[%clk 0:00:50.7]}
30... Rfd8 {[%clk 0:02:18.8]} 31. Bd5 {[%clk 0:00:50.2]} 31... Rc7 {[%clk
0:02:10.9]} 32. f4 {[%clk 0:00:48.9]} 32... exf4 {[%clk 0:02:09.6]} 33. Nxf4
{[%clk 0:00:47.8]} 33... Nxf4 {[%clk 0:02:05.5]} 34. Qxf4 {[%clk 0:00:47.4]}
34... Qe5 {[%clk 0:02:03.1]} 35. Qd2 {[%clk 0:00:41]} 35... Qf5+ {[%clk
0:01:57]} 0-1

[Event "*** Titled Tuesday Blitz"]
[Site "Chess.com"]
[Date "2021.02.09"]
[Round "9"]
[White "Trickster_Pony"]
[Black "MuhittinBuker"]
[Result "0-1"]
[WhiteElo "1489"]
[BlackElo "2054"]
[TimeControl "180+1"]
[EndTime "11:42:50 PST"]
[Termination "MuhittinBuker won by checkmate"]

1. c4 {[%clk 0:03:00.9]} 1... Nf6 {[%clk 0:02:59.2]} 2. g3 {[%clk 0:03:00.8]}
2... e6 {[%clk 0:02:59]} 3. Bg2 {[%clk 0:03:00.3]} 3... Be7 {[%clk 0:02:58.7]}
4. Nf3 {[%clk 0:02:59.3]} 4... d5 {[%clk 0:02:58.5]} 5. b3 {[%clk 0:02:58.4]}
5... O-O {[%clk 0:02:59.1]} 6. O-O {[%clk 0:02:55.9]} 6... c5 {[%clk 0:02:59.6]}
7. Bb2 {[%clk 0:02:55]} 7... d4 {[%clk 0:02:59.7]} 8. e3 {[%clk 0:02:52.8]} 8...
Nc6 {[%clk 0:03:00.3]} 9. exd4 {[%clk 0:02:52.6]} 9... cxd4 {[%clk 0:03:00.5]}
10. d3 {[%clk 0:02:52.1]} 10... e5 {[%clk 0:02:59.1]} 11. Nbd2 {[%clk
0:02:51.4]} 11... Bf5 {[%clk 0:02:57.4]} 12. Ne4 {[%clk 0:02:35.7]} 12... Nxe4
{[%clk 0:02:52.7]} 13. dxe4 {[%clk 0:02:36.6]} 13... Be6 {[%clk 0:02:52.4]} 14.
Ne1 {[%clk 0:02:30]} 14... a5 {[%clk 0:02:52.2]} 15. Nd3 {[%clk 0:02:29.5]}
15... f6 {[%clk 0:02:51.9]} 16. f4 {[%clk 0:02:25.3]} 16... Nb4 {[%clk
0:02:45.2]} 17. f5 {[%clk 0:02:19.3]} 17... Nxd3 {[%clk 0:02:43.3]} 18. Qxd3
{[%clk 0:02:17.9]} 18... Bf7 {[%clk 0:02:43]} 19. a4 {[%clk 0:02:07.4]} 19... b6
{[%clk 0:02:41.1]} 20. Ba3 {[%clk 0:02:06.4]} 20... Bxa3 {[%clk 0:02:36.3]} 21.
Rxa3 {[%clk 0:02:07.3]} 21... Qd6 {[%clk 0:02:36.1]} 22. Ra2 {[%clk 0:02:04]}
22... Qb4 {[%clk 0:02:33.2]} 23. h4 {[%clk 0:01:54.8]} 23... Bh5 {[%clk
0:02:31.9]} 24. Bf3 {[%clk 0:01:51.7]} 24... Bxf3 {[%clk 0:02:30.5]} 25. Rxf3
{[%clk 0:01:50.5]} 25... Rfd8 {[%clk 0:02:29.6]} 26. Rg2 {[%clk 0:01:44.5]}
26... Kh8 {[%clk 0:02:26.2]} 27. Kh2 {[%clk 0:01:43.5]} 27... Rac8 {[%clk
0:02:20.5]} 28. g4 {[%clk 0:01:40.1]} 28... b5 {[%clk 0:02:19.5]} 29. axb5
{[%clk 0:01:35.7]} 29... a4 {[%clk 0:02:19.7]} 30. g5 {[%clk 0:01:16.2]} 30...
axb3 {[%clk 0:02:18.2]} 31. gxf6 {[%clk 0:00:59.1]} 31... gxf6 {[%clk
0:02:17.4]} 32. Qxb3 {[%clk 0:00:40.9]} 32... Rxc4 {[%clk 0:02:16]} 33. Rb2
{[%clk 0:00:16.8]} 33... Qe1 {[%clk 0:02:13.9]} 34. Qd3 {[%clk 0:00:14.1]} 34...
Qxh4+ {[%clk 0:02:10.7]} 35. Kg2 {[%clk 0:00:12.9]} 35... Rg8+ {[%clk
0:02:09.8]} 36. Kf1 {[%clk 0:00:12.2]} 36... Rc1+ {[%clk 0:02:06.2]} 37. Ke2
{[%clk 0:00:12]} 37... Qe1# {[%clk 0:02:05]} 0-1

[Event "*** Titled Tuesday Blitz"]
[Site "Chess.com"]
[Date "2021.02.09"]
[Round "9"]
[White "Chesswizard_2007"]
[Black "Zhigalko_Sergei"]
[Result "0-1"]
[WhiteElo "2677"]
[BlackElo "2885"]
[TimeControl "180+1"]
[EndTime "11:42:54 PST"]
[Termination "Zhigalko_Sergei won by resignation"]

1. e4 {[%clk 0:03:00.9]} 1... c5 {[%clk 0:02:59.9]} 2. Nf3 {[%clk 0:03:00.6]}
2... Nc6 {[%clk 0:03:00.2]} 3. Nc3 {[%clk 0:02:59.9]} 3... Nf6 {[%clk
0:03:00.2]} 4. g3 {[%clk 0:02:58.3]} 4... e5 {[%clk 0:02:52]} 5. Bg2 {[%clk
0:02:55.1]} 5... Be7 {[%clk 0:02:47.9]} 6. O-O {[%clk 0:02:54.9]} 6... O-O
{[%clk 0:02:48.3]} 7. d3 {[%clk 0:02:55.3]} 7... d6 {[%clk 0:02:48.4]} 8. Re1
{[%clk 0:02:55.8]} 8... h6 {[%clk 0:02:42.9]} 9. h3 {[%clk 0:02:55.8]} 9... Be6
{[%clk 0:02:43]} 10. a3 {[%clk 0:02:47.6]} 10... Qd7 {[%clk 0:02:40.3]} 11. Rb1
{[%clk 0:02:47.6]} 11... Bxh3 {[%clk 0:02:39.7]} 12. b4 {[%clk 0:02:38.7]} 12...
Bg4 {[%clk 0:02:34.2]} 13. Ne2 {[%clk 0:02:34.5]} 13... Nd4 {[%clk 0:02:15.5]}
14. Nfxd4 {[%clk 0:02:27.4]} 14... cxd4 {[%clk 0:02:15.8]} 15. f3 {[%clk
0:02:27.8]} 15... Be6 {[%clk 0:02:15.5]} 16. c4 {[%clk 0:02:27.7]} 16... b5
{[%clk 0:02:07.4]} 17. cxb5 {[%clk 0:02:27.4]} 17... Qxb5 {[%clk 0:02:07.3]} 18.
a4 {[%clk 0:02:27.3]} 18... Qd7 {[%clk 0:01:59.8]} 19. b5 {[%clk 0:02:17.9]}
19... d5 {[%clk 0:01:44.5]} 20. Bb2 {[%clk 0:02:01.7]} 20... a6 {[%clk
0:01:30.4]} 21. f4 {[%clk 0:01:51.9]} 21... dxe4 {[%clk 0:01:19.4]} 22. dxe4
{[%clk 0:01:50.7]} 22... axb5 {[%clk 0:01:10.5]} 23. fxe5 {[%clk 0:01:50]} 23...
Ng4 {[%clk 0:01:08.8]} 24. Nxd4 {[%clk 0:01:46.6]} 24... Bc5 {[%clk 0:01:00.5]}
25. Rc1 {[%clk 0:01:44.3]} 25... Bb6 {[%clk 0:00:56.3]} 26. Rc6 {[%clk
0:01:22.9]} 26... Qxc6 {[%clk 0:00:54.5]} 27. a5 {[%clk 0:01:21.7]} 27... Rxa5
{[%clk 0:00:53.2]} 28. Qf3 {[%clk 0:01:21.9]} 28... Rd8 {[%clk 0:00:47.4]} 29.
Kh1 {[%clk 0:01:20.9]} 29... Bxd4 {[%clk 0:00:46.8]} 30. Bxd4 {[%clk 0:01:21.8]}
30... Rxd4 {[%clk 0:00:46.8]} 31. Rf1 {[%clk 0:01:22.7]} 31... Ra8 {[%clk
0:00:43.8]} 32. Bh3 {[%clk 0:01:22.6]} 32... Nxe5 {[%clk 0:00:43.6]} 33. Bxe6
{[%clk 0:01:22.7]} 33... Nxf3 {[%clk 0:00:43.1]} 34. Bd7 {[%clk 0:01:23.6]}
34... Qxd7 {[%clk 0:00:42.9]} 0-1

[Event "*** Titled Tuesday Blitz"]
[Site "Chess.com"]
[Date "2021.02.09"]
[Round "9"]
[White "davigator"]
[Black "AttackSparrow"]
[Result "0-1"]
[WhiteElo "2362"]
[BlackElo "2485"]
[TimeControl "180+1"]
[EndTime "11:42:57 PST"]
[Termination "AttackSparrow won by resignation"]

1. e4 {[%clk 0:03:00.9]} 1... c5 {[%clk 0:02:58.3]} 2. Nf3 {[%clk 0:02:58.3]}
2... e6 {[%clk 0:02:51.1]} 3. d4 {[%clk 0:02:58.4]} 3... cxd4 {[%clk 0:02:52]}
4. Nxd4 {[%clk 0:02:58.1]} 4... Nc6 {[%clk 0:02:52.4]} 5. Nc3 {[%clk 0:02:57.6]}
5... Qc7 {[%clk 0:02:49.7]} 6. Be3 {[%clk 0:02:57.8]} 6... a6 {[%clk 0:02:49.1]}
7. f3 {[%clk 0:02:57.1]} 7... Nf6 {[%clk 0:02:38.2]} 8. Qd2 {[%clk 0:02:56.6]}
8... Ne5 {[%clk 0:02:30]} 9. a3 {[%clk 0:02:50.4]} 9... b5 {[%clk 0:02:29]} 10.
O-O-O {[%clk 0:02:28.1]} 10... b4 {[%clk 0:01:52.2]} 11. axb4 {[%clk 0:02:27.2]}
11... Bxb4 {[%clk 0:01:53.1]} 12. Nb3 {[%clk 0:02:26]} 12... a5 {[%clk
0:01:37.2]} 13. Qd4 {[%clk 0:02:25.3]} 13... Bxc3 {[%clk 0:01:24.3]} 14. Qxc3
{[%clk 0:02:24.2]} 14... Qxc3 {[%clk 0:01:23.9]} 15. bxc3 {[%clk 0:02:24.5]}
15... d5 {[%clk 0:01:15.6]} 16. Bd4 {[%clk 0:02:20.7]} 16... Ned7 {[%clk
0:01:08.6]} 17. e5 {[%clk 0:02:16.9]} 17... Ng8 {[%clk 0:01:07.3]} 18. c4 {[%clk
0:02:16.1]} 18... Bb7 {[%clk 0:01:04.9]} 19. c5 {[%clk 0:02:14.5]} 19... Bc6
{[%clk 0:01:03.7]} 20. c4 {[%clk 0:02:11.3]} 20... Ne7 {[%clk 0:01:02.4]} 21.
Kc2 {[%clk 0:02:08.2]} 21... a4 {[%clk 0:01:01.5]} 22. Nd2 {[%clk 0:02:07.1]}
22... Nf5 {[%clk 0:01:00.1]} 23. Kc3 {[%clk 0:02:01.9]} 23... a3 {[%clk
0:00:54.5]} 24. Bd3 {[%clk 0:02:00.5]} 24... Nxd4 {[%clk 0:00:50.2]} 25. Kxd4
{[%clk 0:02:00.1]} 25... O-O {[%clk 0:00:48.5]} 26. Ra1 {[%clk 0:01:56.5]} 26...
Rfd8 {[%clk 0:00:44.6]} 27. f4 {[%clk 0:01:55.5]} 27... Nb8 {[%clk 0:00:41]} 28.
Nb3 {[%clk 0:01:49.1]} 28... dxc4+ {[%clk 0:00:38.5]} 29. Kxc4 {[%clk
0:01:47.8]} 29... Bd5+ {[%clk 0:00:38.4]} 30. Kb4 {[%clk 0:01:47.4]} 30... Bxb3
{[%clk 0:00:38.2]} 31. Be4 {[%clk 0:01:46.1]} 31... Bd5 {[%clk 0:00:37.2]} 32.
Rhd1 {[%clk 0:01:43.3]} 32... Nc6+ {[%clk 0:00:37]} 33. Kc3 {[%clk 0:01:43.2]}
33... Bxe4 {[%clk 0:00:37.1]} 34. Rxd8+ {[%clk 0:01:41.5]} 34... Nxd8 {[%clk
0:00:37.5]} 35. g4 {[%clk 0:01:39.2]} 35... Bd5 {[%clk 0:00:37]} 36. Kb4 {[%clk
0:01:38.8]} 36... Nc6+ {[%clk 0:00:36.8]} 37. Kb5 {[%clk 0:01:37.3]} 37... a2
{[%clk 0:00:36.6]} 38. Kb6 {[%clk 0:01:37.5]} 38... Rb8+ {[%clk 0:00:36.4]} 39.
Kc7 {[%clk 0:01:37.5]} 39... Rb1 {[%clk 0:00:37.3]} 0-1

[Event "*** Titled Tuesday Blitz"]
[Site "Chess.com"]
[Date "2021.02.09"]
[Round "9"]
[White "MillyNeuf"]
[Black "ailime26"]
[Result "1-0"]
[WhiteElo "2323"]
[BlackElo "2122"]
[TimeControl "180+1"]
[EndTime "11:43:01 PST"]
[Termination "MillyNeuf won by checkmate"]

1. e4 {[%clk 0:03:00.9]} 1... c5 {[%clk 0:02:23.2]} 2. Nc3 {[%clk 0:03:00.8]}
2... Nc6 {[%clk 0:02:22.6]} 3. g3 {[%clk 0:03:01.2]} 3... g6 {[%clk 0:02:21.3]}
4. Bg2 {[%clk 0:03:01.6]} 4... Bg7 {[%clk 0:02:21.7]} 5. d3 {[%clk 0:03:02.2]}
5... b6 {[%clk 0:02:22]} 6. Be3 {[%clk 0:03:02.5]} 6... Bb7 {[%clk 0:02:22.4]}
7. Qd2 {[%clk 0:03:02.7]} 7... e6 {[%clk 0:02:22.6]} 8. Nge2 {[%clk 0:03:02.3]}
8... Nge7 {[%clk 0:02:23]} 9. Bh6 {[%clk 0:03:02.3]} 9... O-O {[%clk 0:02:23.2]}
10. h4 {[%clk 0:03:02.3]} 10... f5 {[%clk 0:02:09.4]} 11. h5 {[%clk 0:03:00]}
11... Kf7 {[%clk 0:02:03.8]} 12. hxg6+ {[%clk 0:02:57]} 12... hxg6 {[%clk
0:02:03.6]} 13. Bxg7 {[%clk 0:02:57.1]} 13... Kxg7 {[%clk 0:02:03.8]} 14. Qh6+
{[%clk 0:02:56.3]} 14... Kf7 {[%clk 0:02:03.9]} 15. Qh7+ {[%clk 0:02:43.7]}
15... Ke8 {[%clk 0:02:03.8]} 16. Nb5 {[%clk 0:02:44.3]} 16... d6 {[%clk
0:02:00]} 17. Nf4 {[%clk 0:02:39.2]} 17... Qd7 {[%clk 0:01:44]} 18. Nxg6 {[%clk
0:02:31.9]} 18... Nxg6 {[%clk 0:01:43.6]} 19. Qxg6+ {[%clk 0:02:32.8]} 19... Kd8
{[%clk 0:01:41.5]} 20. Rh7 {[%clk 0:02:30.5]} 20... Ne7 {[%clk 0:01:40.3]} 21.
Qg7 {[%clk 0:02:03.1]} 21... Re8 {[%clk 0:01:32.7]} 22. Nc3 {[%clk 0:01:49.6]}
22... d5 {[%clk 0:01:30.5]} 23. O-O-O {[%clk 0:01:44]} 23... fxe4 {[%clk
0:01:28.7]} 24. dxe4 {[%clk 0:01:41.7]} 24... d4 {[%clk 0:01:28.4]} 25. Ne2
{[%clk 0:01:37.5]} 25... Kc7 {[%clk 0:01:26.7]} 26. Nf4 {[%clk 0:01:32.8]} 26...
Rad8 {[%clk 0:01:23.7]} 27. Ng6 {[%clk 0:01:25.4]} 27... Nxg6 {[%clk 0:01:21.5]}
28. Qxg6 {[%clk 0:01:26.3]} 28... Re7 {[%clk 0:01:21.3]} 29. Rxe7 {[%clk
0:01:24.9]} 29... Qxe7 {[%clk 0:01:21.6]} 30. Rh1 {[%clk 0:01:25.5]} 30... Rd7
{[%clk 0:01:17.8]} 31. Rh6 {[%clk 0:01:21.1]} 31... c4 {[%clk 0:01:09.7]} 32.
Qxe6 {[%clk 0:01:16.4]} 32... Qb4 {[%clk 0:01:08.3]} 33. Qe5+ {[%clk 0:01:09.2]}
33... Kc8 {[%clk 0:01:02]} 34. Rh8+ {[%clk 0:01:07.9]} 34... Rd8 {[%clk
0:01:00.7]} 35. Bh3# {[%clk 0:01:07.9]} 1-0

[Event "*** Titled Tuesday Blitz"]
[Site "Chess.com"]
[Date "2021.02.09"]
[Round "9"]
[White "PotapovaM"]
[Black "Ghost_Pepper"]
[Result "1-0"]
[WhiteElo "2625"]
[BlackElo "2402"]
[TimeControl "180+1"]
[EndTime "11:43:05 PST"]
[Termination "PotapovaM won by checkmate"]

1. e4 {[%clk 0:02:57.9]} 1... c5 {[%clk 0:02:58.9]} 2. Nf3 {[%clk 0:02:57.3]}
2... d6 {[%clk 0:02:59.2]} 3. d4 {[%clk 0:02:58]} 3... cxd4 {[%clk 0:02:59.9]}
4. Nxd4 {[%clk 0:02:58.6]} 4... Nf6 {[%clk 0:03:00.6]} 5. Nc3 {[%clk 0:02:59.3]}
5... a6 {[%clk 0:03:01.2]} 6. Be3 {[%clk 0:02:54.5]} 6... e5 {[%clk 0:02:59.1]}
7. Nb3 {[%clk 0:02:54.2]} 7... Be7 {[%clk 0:02:59.6]} 8. f3 {[%clk 0:02:51.6]}
8... Be6 {[%clk 0:02:59.6]} 9. Qd2 {[%clk 0:02:52.3]} 9... O-O {[%clk
0:03:00.1]} 10. O-O-O {[%clk 0:02:52.9]} 10... Nbd7 {[%clk 0:02:59.3]} 11. g4
{[%clk 0:02:53]} 11... b5 {[%clk 0:02:59.9]} 12. g5 {[%clk 0:02:52.6]} 12... b4
{[%clk 0:02:59.2]} 13. Ne2 {[%clk 0:02:52.2]} 13... Ne8 {[%clk 0:02:59]} 14. f4
{[%clk 0:02:51.7]} 14... a5 {[%clk 0:02:58.9]} 15. f5 {[%clk 0:02:52]} 15...
Bxb3 {[%clk 0:02:58.9]} 16. cxb3 {[%clk 0:02:47.2]} 16... a4 {[%clk 0:02:59.2]}
17. Kb1 {[%clk 0:02:47.1]} 17... axb3 {[%clk 0:02:53.6]} 18. Nc1 {[%clk
0:02:47.7]} 18... Nc7 {[%clk 0:02:41]} 19. Rg1 {[%clk 0:02:38.6]} 19... Kh8
{[%clk 0:02:36.2]} 20. Bc4 {[%clk 0:02:36.7]} 20... Qb8 {[%clk 0:02:19.1]} 21.
f6 {[%clk 0:02:14.9]} 21... gxf6 {[%clk 0:02:14.8]} 22. gxf6 {[%clk 0:02:12.9]}
22... Nxf6 {[%clk 0:02:09]} 23. Bh6 {[%clk 0:02:03.7]} 23... Rg8 {[%clk
0:01:52.4]} 24. Bxf7 {[%clk 0:01:59.9]} 24... Qb7 {[%clk 0:01:17.6]} 25. Bxg8
{[%clk 0:01:40]} 25... Qxe4+ {[%clk 0:01:14]} 26. Ka1 {[%clk 0:01:31.6]} 26...
Rxg8 {[%clk 0:01:13.3]} 27. Rxg8+ {[%clk 0:01:18.9]} 27... Nxg8 {[%clk
0:01:11.4]} 28. Rg1 {[%clk 0:01:17.6]} 28... Ne6 {[%clk 0:00:55.7]} 29. Nxb3
{[%clk 0:01:05.4]} 29... Nf4 {[%clk 0:00:43.4]} 30. Bg7# {[%clk 0:01:04]} 1-0

[Event "*** Titled Tuesday Blitz"]
[Site "Chess.com"]
[Date "2021.02.09"]
[Round "9"]
[White "Chandradi"]
[Black "DarZay"]
[Result "1-0"]
[WhiteElo "2330"]
[BlackElo "2152"]
[TimeControl "180+1"]
[EndTime "11:43:12 PST"]
[Termination "Chandradi won by checkmate"]

1. Nf3 {[%clk 0:02:56.5]} 1... Nf6 {[%clk 0:02:58.3]} 2. g3 {[%clk 0:02:55.6]}
2... d5 {[%clk 0:02:57.9]} 3. Bg2 {[%clk 0:02:55.6]} 3... e6 {[%clk 0:02:54.7]}
4. b3 {[%clk 0:02:55.2]} 4... Be7 {[%clk 0:02:53.8]} 5. Bb2 {[%clk 0:02:55.5]}
5... c5 {[%clk 0:02:53.5]} 6. O-O {[%clk 0:02:56.4]} 6... O-O {[%clk 0:02:53]}
7. e3 {[%clk 0:02:55.9]} 7... Nc6 {[%clk 0:02:52.7]} 8. d4 {[%clk 0:02:55.3]}
8... Ne4 {[%clk 0:02:52.3]} 9. dxc5 {[%clk 0:02:54.7]} 9... Bxc5 {[%clk
0:02:51.4]} 10. a3 {[%clk 0:02:53.7]} 10... a5 {[%clk 0:02:50.2]} 11. Nbd2
{[%clk 0:02:52.6]} 11... f5 {[%clk 0:02:48.5]} 12. Qe2 {[%clk 0:02:46.4]} 12...
b6 {[%clk 0:02:47.5]} 13. Rfd1 {[%clk 0:02:46.8]} 13... Qe7 {[%clk 0:02:45.2]}
14. c4 {[%clk 0:02:45.7]} 14... Ba6 {[%clk 0:02:44.2]} 15. Ne5 {[%clk
0:02:44.2]} 15... Nxe5 {[%clk 0:02:42.9]} 16. Bxe5 {[%clk 0:02:44]} 16... Rad8
{[%clk 0:02:38.1]} 17. Nxe4 {[%clk 0:02:41.5]} 17... fxe4 {[%clk 0:02:36]} 18.
Bb2 {[%clk 0:02:36.5]} 18... e5 {[%clk 0:02:30.5]} 19. Qh5 {[%clk 0:02:30.5]}
19... Qf6 {[%clk 0:02:12.1]} 20. Bxe5 {[%clk 0:02:17.6]} 20... Qxf2+ {[%clk
0:02:11.1]} 21. Kh1 {[%clk 0:02:18.3]} 21... Rf5 {[%clk 0:02:02.2]} 22. Qh4
{[%clk 0:02:12.3]} 22... g5 {[%clk 0:01:59.8]} 23. Qh6 {[%clk 0:02:04.5]} 23...
Rxe5 {[%clk 0:01:53.5]} 24. Rf1 {[%clk 0:02:04.5]} 24... Qxe3 {[%clk 0:01:25.4]}
25. Bh3 {[%clk 0:02:04.7]} 25... Rde8 {[%clk 0:00:59.2]} 26. Rae1 {[%clk
0:02:00.3]} 26... Qd4 {[%clk 0:00:55.8]} 27. Rf7 {[%clk 0:01:55.6]} 27... Kxf7
{[%clk 0:00:34.5]} 28. Qxh7+ {[%clk 0:01:54.5]} 28... Kf6 {[%clk 0:00:23.7]} 29.
Rf1+ {[%clk 0:01:55.4]} 29... Qf2 {[%clk 0:00:22.3]} 30. Rxf2+ {[%clk
0:01:45.8]} 30... Bxf2 {[%clk 0:00:22.2]} 31. Qh6+ {[%clk 0:01:43.3]} 31... Kf7
{[%clk 0:00:20.6]} 32. Qh7+ {[%clk 0:01:42.8]} 32... Kf8 {[%clk 0:00:19.6]} 33.
cxd5 {[%clk 0:01:41.3]} 33... e3 {[%clk 0:00:16.3]} 34. Be6 {[%clk 0:01:39.4]}
34... R5xe6 {[%clk 0:00:16.2]} 35. dxe6 {[%clk 0:01:39.6]} 35... e2 {[%clk
0:00:15.5]} 36. Qf7# {[%clk 0:01:39.1]} 1-0

[Event "*** Titled Tuesday Blitz"]
[Site "Chess.com"]
[Date "2021.02.09"]
[Round "9"]
[White "Klavdia_Nik"]
[Black "Evachess2006"]
[Result "1-0"]
[WhiteElo "2063"]
[BlackElo "1619"]
[TimeControl "180+1"]
[EndTime "11:43:28 PST"]
[Termination "Klavdia_Nik won by resignation"]

1. Nf3 {[%clk 0:03:00.9]} 1... d5 {[%clk 0:02:42.6]} 2. c4 {[%clk 0:03:00.6]}
2... dxc4 {[%clk 0:02:40.4]} 3. Na3 {[%clk 0:02:59.7]} 3... Nf6 {[%clk 0:02:38]}
4. Nxc4 {[%clk 0:02:59.3]} 4... Nc6 {[%clk 0:02:38.9]} 5. b3 {[%clk 0:02:58.2]}
5... Bf5 {[%clk 0:02:38.5]} 6. Bb2 {[%clk 0:02:56.2]} 6... e6 {[%clk 0:02:38.4]}
7. g3 {[%clk 0:02:54.5]} 7... Bb4 {[%clk 0:02:35.9]} 8. Bg2 {[%clk 0:02:52.8]}
8... O-O {[%clk 0:02:36.1]} 9. O-O {[%clk 0:02:52.5]} 9... Bg6 {[%clk
0:02:29.5]} 10. a3 {[%clk 0:02:44.6]} 10... Bc5 {[%clk 0:02:15.7]} 11. b4 {[%clk
0:02:40.9]} 11... Bb6 {[%clk 0:02:09.9]} 12. d3 {[%clk 0:02:28.1]} 12... Qe7
{[%clk 0:01:59.3]} 13. Qc2 {[%clk 0:02:16.4]} 13... Rad8 {[%clk 0:01:52.4]} 14.
Nxb6 {[%clk 0:02:16]} 14... cxb6 {[%clk 0:01:48.7]} 15. Rac1 {[%clk 0:02:12.3]}
15... Rc8 {[%clk 0:01:40.4]} 16. Qb3 {[%clk 0:02:09.7]} 16... b5 {[%clk
0:01:37.6]} 17. e4 {[%clk 0:01:58.7]} 17... a5 {[%clk 0:01:31.9]} 18. Rc5 {[%clk
0:01:56.2]} 18... axb4 {[%clk 0:01:28.5]} 19. axb4 {[%clk 0:01:50.7]} 19... Nxb4
{[%clk 0:01:15.4]} 20. Rxb5 {[%clk 0:01:48.2]} 20... Nc6 {[%clk 0:00:44.7]} 21.
Ba3 {[%clk 0:01:42.6]} 21... Qd7 {[%clk 0:00:37.3]} 22. Bxf8 {[%clk 0:01:37.6]}
22... Kxf8 {[%clk 0:00:36]} 23. Rxb7 {[%clk 0:01:37.4]} 23... Nd4 {[%clk
0:00:23.2]} 24. Nxd4 {[%clk 0:01:35.6]} 24... Qxd4 {[%clk 0:00:22.2]} 25. Qb4+
{[%clk 0:01:34.7]} 25... Qxb4 {[%clk 0:00:19.7]} 26. Rxb4 {[%clk 0:01:35.2]}
26... Rd8 {[%clk 0:00:19.5]} 27. Rb3 {[%clk 0:01:31.9]} 27... Nd7 {[%clk
0:00:17.9]} 28. d4 {[%clk 0:01:30]} 28... e5 {[%clk 0:00:17.2]} 29. d5 {[%clk
0:01:30]} 29... Nc5 {[%clk 0:00:17.1]} 30. Re3 {[%clk 0:01:29.9]} 30... f6
{[%clk 0:00:14.4]} 31. Rc1 {[%clk 0:01:29]} 31... Rc8 {[%clk 0:00:13.4]} 32.
Rec3 {[%clk 0:01:27.4]} 1-0

[Event "*** Titled Tuesday Blitz"]
[Site "Chess.com"]
[Date "2021.02.09"]
[Round "9"]
[White "eduardoperalta"]
[Black "klimkoj"]
[Result "1-0"]
[WhiteElo "2413"]
[BlackElo "2539"]
[TimeControl "180+1"]
[EndTime "11:43:29 PST"]
[Termination "eduardoperalta won by resignation"]

1. d4 {[%clk 0:03:00.9]} 1... Nf6 {[%clk 0:02:59.5]} 2. c4 {[%clk 0:03:00.4]}
2... e6 {[%clk 0:02:59.3]} 3. Nf3 {[%clk 0:02:59.7]} 3... Bb4+ {[%clk
0:02:59.7]} 4. Nc3 {[%clk 0:02:58.2]} 4... c5 {[%clk 0:02:56.8]} 5. e3 {[%clk
0:02:55]} 5... O-O {[%clk 0:02:54.9]} 6. Bd3 {[%clk 0:02:54.6]} 6... d5 {[%clk
0:02:54.8]} 7. O-O {[%clk 0:02:53.2]} 7... Bxc3 {[%clk 0:02:52.4]} 8. bxc3
{[%clk 0:02:52.9]} 8... cxd4 {[%clk 0:02:44.3]} 9. cxd4 {[%clk 0:02:50.9]} 9...
Nc6 {[%clk 0:02:44.2]} 10. Bb2 {[%clk 0:02:43]} 10... Bd7 {[%clk 0:02:42.4]} 11.
Qe2 {[%clk 0:02:39.1]} 11... Rc8 {[%clk 0:02:36.2]} 12. c5 {[%clk 0:02:29.5]}
12... b6 {[%clk 0:02:29.5]} 13. Rfc1 {[%clk 0:02:23.4]} 13... bxc5 {[%clk
0:02:28.5]} 14. Rxc5 {[%clk 0:02:22.8]} 14... Qb6 {[%clk 0:02:13.6]} 15. Ba3
{[%clk 0:02:21]} 15... Rfd8 {[%clk 0:02:08]} 16. Rb1 {[%clk 0:02:19.2]} 16...
Qc7 {[%clk 0:02:03.5]} 17. h3 {[%clk 0:02:19.1]} 17... Rb8 {[%clk 0:01:54.9]}
18. Rbc1 {[%clk 0:02:18.2]} 18... Qb7 {[%clk 0:01:30.7]} 19. Ne5 {[%clk
0:02:00.9]} 19... Nxe5 {[%clk 0:01:25.6]} 20. dxe5 {[%clk 0:02:00.8]} 20... Ne8
{[%clk 0:01:19.6]} 21. e4 {[%clk 0:01:48.3]} 21... d4 {[%clk 0:01:02.9]} 22. Kh2
{[%clk 0:01:37.2]} 22... Ba4 {[%clk 0:00:59.8]} 23. f4 {[%clk 0:01:34.4]} 23...
Qb6 {[%clk 0:00:56]} 24. f5 {[%clk 0:01:33.3]} 24... Bd7 {[%clk 0:00:52.4]} 25.
f6 {[%clk 0:01:30.3]} 25... g6 {[%clk 0:00:44.8]} 26. Qf2 {[%clk 0:01:25.1]}
26... Ba4 {[%clk 0:00:37.1]} 27. Qh4 {[%clk 0:01:15.4]} 27... a6 {[%clk
0:00:28.5]} 28. Qh6 {[%clk 0:01:14.8]} 28... Bb5 {[%clk 0:00:21.5]} 29. Rc6
{[%clk 0:01:12.4]} 29... Nxf6 {[%clk 0:00:14.1]} 30. Rxb6 {[%clk 0:01:10.3]} 1-0